Workbook

Sheet 0002
AJ1: 事業番号 | AS1: =IF(OR(AQ1=" ", AQ1=""), "", "-") ->  | AT1: 2
A2: 29 | AI2: （ | AJ2: 人事院 | AX2: ）
A3: 事業名 | G3: 人事・給与等業務の電子化の推進 | Y3: 担当部局庁 | AE3: 事務総局 | AQ3: 作成責任者
A4: 事業開始年度 | G4: 平成１５年度 | M4: 事業終了 （予定）年度 | S4: 終了予定なし | Y4: 担当課室 | AE4: 電子化推進室 | AQ4: 参事官 長谷川 一也
A5: 会計区分 | G5: 一般会計
A6: 根拠法令 （具体的な 条項も記載） | G6: － | Y6: 関係する計画、通知等 | AE6: 人事・給与等業務・システム最適化計画 （平成16年2月27日・各府省情報化統括責任者（CIO）連絡会議決定、平成29年2月28日最終改定）
A7: 主要政策・施策 | G7: IT戦略 | Y7: 主要経費 | AE7: その他の事項経費
A8: 事業の目的 （目指す姿を簡潔に。3行程度以内） | G8: 人事・給与等業務の共通化・効率化を図るとともに、システムの運用等に係る政府全体の経費の最小限化を行う。また同時に、安全性・信頼性の確保及び個人情報の保護を実現する。
A9: 事業概要 （5行程度以内。別添可） | G9: 各府省等が必要に応じて個別にシステム化を実施している人事・給与等業務について、上記「人事・給与等業務・システム最適化計画」に基づき、各府省等が共同で利用する「人事・給与関係業務情報システム」（以下「人事・給与システム」という。）を新たに構築することにより、情報システムの統一化・集中化、情報の電子化と処理の自動化等による業務の効率化を目指す。平成22年度から各府省等でのシステム導入作業が開始されたことに伴い、運用センター業務、ヘルプデスク業務等を開始すると共に、必要となるハードウェアの調達や各府省等の移行支援等を実施し、平成28年度中に「人事給与業務効率化に向けた改善計画（平成27年3月27日 人事給与業務効率化推進会議決定、平成27年8月7日改定）」に定める全ての導入府省について、システムの運用を開始した（参議院を除く）。
A10: 実施方法 | G10: 委託・請負
A11: 予算額・ 執行額 （単位:百万円） | P11: =W11-1 -> 26 | W11: =AD11-1 -> 27 | AD11: =AK11-1 -> 28 | AK11: =A2 -> 29 | AR11: =AK11+1 -> 30
G12: 予算の状況 | I12: 当初予算 | P12: 2817 | W12: 2699 | AD12: 2684 | AK12: 2474 | AR12: 2885
I13: 補正予算 | P13: 0 | W13: 0 | AD13: 33
I14: 前年度から繰越し | P14: 0 | W14: 0 | AD14: 703 | AK14: 0
I15: 翌年度へ繰越し | P15: 0 | W15: -703 | AD15: 0
I16: 予備費等 | P16: 110 | W16: 4 | AD16: 147
I17: 計 | P17: =SUM(P12:V16) -> 2927 | W17: =SUM(W12:AC16) -> 2000 | AD17: =SUM(AD12:AJ16) -> 3567 | AK17: =SUM(AK12:AQ16) -> 2474 | AR17: =SUM(AR12:AX16) -> 2885
G18: 執行額 | P18: 2908 | W18: 2000 | AD18: 3577
G19: 執行率（％） | P19: =IF(P17=0, "-", P18/P17) -> 0.993508712 | W19: =IF(W17=0, "-", W18/W17) -> 1 | AD19: =IF(AD17=0, "-", AD18/AD17) -> 1.002803476
G20: 当初予算＋補正予算に対する執行額の割合（％） | P20: =IF(P17=0, "-", P18/SUM(P12:V13)) -> 1.032303869 | W20: =IF(W17=0, "-", W18/SUM(W12:AC13)) -> 0.7410151908 | AD20: =IF(AD17=0, "-", AD18/SUM(AD12:AJ13)) -> 1.31652558
A21: 平成29・30年度 予算内訳 （単位：百万円） | G21: 歳出予算日 | P21: =AK11 -> 29 | W21: =P21+1 -> 30 | AD21: 主な増減理由
G22: 情報処理業務庁費 | P22: 2471.2 | W22: 2881.9 | AD22: 次期システム更改に向けた改修等を実施するため
G23: 庁費 | P23: 2.7 | W23: 2.7
G24: 職員旅費 | P24: 0.2 | W24: 0.2
G27: その他 | P27: =P28-SUM(P22:V26) -> -0.1 | W27: =W28-SUM(W22:AC26) -> 0.2
G28: 計 | P28: =AK12 -> 2474 | W28: =AR12 -> 2885
A29: 成果目標及び 成果実績 （アウトカム） | G29: 定量的な成果目標 | P29: 成果指標 | AB29: 単位 | AE29: =AI29-1 -> 26 | AI29: =AM29-1 -> 27 | AM29: =P21-1 -> 28 | AQ29: 中間目標 | AU29: 目標最終年度
AQ30: - | AS30: 年度 | AU30: 31 | AW30: 年度
G31: コスト削減の取組により、人事・給与システムの運用経費は、平成26年度を基準として、平成31年度までに、機器等の見直しにより、約5.8億円の経費削減を見込んでいる。 | P31: 人事・給与システムの運用経費 | Y31: 成果実績 | AB31: 億円 | AE31: - | AI31: -3 | AM31: -2.3 | AQ31: -
Y32: 目標値 | AB32: 億円 | AE32: - | AI32: - | AM32: - | AQ32: - | AU32: -5.8
Y33: 達成度 | AB33: ％ | AE33: - | AI33: =AI31/$AU$32 -> 0.5172413793 | AM33: =AM31/$AU$32 -> 0.3965517241 | AQ33: - | AU33: -
A34: 横断的な施策に係る成果目標及び成果実績 （アウトカム） | H34: 定量的な成果目標 | P34: 成果指標 | AB34: 単位 | AE34: 25年度 | AI34: 26年度 | AM34: 27年度 | AQ34: 中間目標 | AU34: 目標最終年度
AS35: 年度 | AW35: 年度
G36: 目標・指標 | Y36: 成果実績
Y37: 目標値
Y38: 達成度 | AB38: ％
A39: ●● | E39: 関係 | G39: 算出方法
A40: 根拠として用いた 統計・データ名 （出典） | G40: 世界最先端ＩＴ国家創造宣言（平成28年5月20日閣議決定）
A41: 成果目標及び成果実績（アウトカム）欄についてさらに記載が必要な場合はチェックの上【別紙１】に記載
A42: 定量的な成果目標の設定が困難な場合 | B42: 定量的な目標が設定できない理由及び定性的な成果目標 | G42: 定量的な目標が設定できない理由 | AB42: 定性的な成果目標と26～28年度の達成状況・実績
B47: 事業の妥当性を検証するための代替的な達成目標及び実績 | G47: 代替目標 | P47: 代替指標 | AB47: 単位 | AE47: =AE29 -> 26 | AI47: =AI29 -> 27 | AM47: =AM29 -> 28 | AQ47: 中間目標 | AU47: 目標最終年度
AQ48: - | AS48: 年度 | AU48: - | AW48: 年度
Y49: 実績 | AB49: - | AE49: - | AI49: - | AM49: - | AQ49: - | AU49: -
Y50: 目標値 | AB50: - | AE50: - | AI50: - | AM50: - | AQ50: - | AU50: -
Y51: 達成度 | AB51: ％ | AE51: - | AI51: - | AM51: - | AQ51: - | AU51: -
A52: 活動指標及び 活動実績 （アウトプット） | G52: 活動指標 | AB52: 単位 | AE52: =AE47 -> 26 | AI52: =AI47 -> 27 | AM52: =AM47 -> 28 | AQ52: =AM52+1 -> 29 | AU52: =AQ52+1 -> 30
G53: 年度末における本番稼働府省等の数 （年度末における並行稼働府省等の数） | Y53: 活動実績 | AB53: 府省等の数 | AE53: 12（6） | AI53: 12（6） | AM53: 24（5）
Y54: 当初見込み | AB54: 府省等の数 | AE54: 26（4） | AI54: 12（6） | AM54: 24（5） | AQ54: 29（0） | AU54: 30（-）
A55: 単位当たり コスト | G55: 算出根拠 | AB55: 単位 | AE55: =AE52 -> 26 | AI55: =AI52 -> 27 | AM55: =AM52 -> 28 | AQ55: =AQ52 -> 29
G56: －／－ | Y56: 単位当たり コスト | AB56: － | AE56: 移行途上のため、算出困難である。なお、調達に当たっては、情報システムに関する外部有識者を含む「技術審査委員会」に諮って、適正な予算執行に努めているところである。
Y57: 計算式 | AB57: －/－
A58: 政策評価、経済・財政再生アクション・プログラムとの関係 | C58: 政策評価 | E58: 政策
E59: 施策
E60: 測定指標 | G60: 定量的指標 | AB60: 単位 | AE60: 25年度 | AI60: 26年度 | AM60: 27年度 | AQ60: 中間目標 | AU60: 目標年度
AS61: 年度 | AW61: 年度
Y62: 実績値
Y63: 目標値
G64: 定性的指標 | Y64: 目標 | AE64: 施策の進捗状況（目標）
AB65: 目標年度
AE68: 施策の進捗状況（実績）
E71: 本事業の成果と上位施策・測定指標との関係
C74: 経済・財政再生 アクション・プログラム | E74: 改革項目 | G74: 分野：
E75: KPI (第一階層） | G75: ＫＰＩ （第一階層） | AB75: 単位 | AE75: 計画開始時 | AI75: 27年度 | AM75: 28年度 | AQ75: 中間目標 | AU75: 目標最終年度
AG76: 年度 | AS76: 年度 | AW76: 年度
Y77: 成果実績
Y78: 目標値
Y79: 達成度 | AB79: ％
E80: KPI (第二階層） | G80: ＫＰＩ （第二階層） | AB80: 単位 | AE80: 計画開始時 | AI80: 27年度 | AM80: 28年度 | AQ80: 中間目標 | AU80: 目標最終年度
AG81: 年度 | AS81: 年度 | AW81: 年度
Y82: 成果実績
Y83: 目標値
Y84: 達成度 | AB84: ％
E85: 本事業の成果と改革項目・KPIとの関係
A88: 事業所管部局による点検・改善
C89: 項 目 | AD89: 評 価 | AG89: 評価に関する説明
A90: 国費投入の必要性 | C90: 事業の目的は国民や社会のニーズを的確に反映しているか。 | AD90: ○ | AG90: 人事・給与システムは、国家公務員の人事・給与に直接的に影響を与える情報を扱う極めて重要なシステムであり、国が責任を持ってシステム構築を行うべき業務である。
C91: 地方自治体、民間等に委ねることができない事業なのか。 | AD91: ○
C92: 政策目的の達成手段として必要かつ適切な事業か。政策体系の中で優先度の高い事業か。 | AD92: ○
A93: 事業の効率性 | C93: 競争性が確保されているなど支出先の選定は妥当か。 | AD93: ○ | AG93: 調達に当たっては、国庫債務負担行為を活用するとともに、原則、一般競争入札にて調達しており、さらに総合評価方式の案件については、情報システムに関する外部有識者を含む「技術審査委員会」を開催し、適正な調達手続き及び予算執行に努めているところである。また、支出の内容は、「人事・給与等業務・システム最適化計画」及び「人事給与業務効率化に向けた改善計画」（以下「改善計画」という。）により決定された業務処理のシステム構築・運用のために必要なものに限定されている。
E94: 一般競争入札、総合評価入札又は随意契約（企画競争）による支出のうち、一者応札又は一者応募となったものはないか。 | AD94: 有
E95: 競争性のない随意契約となったものはないか。 | AD95: 有
C96: 受益者との負担関係は妥当であるか。 | AD96: ○
C97: 単位当たりコスト等の水準は妥当か。 | AD97: ‐
C98: 資金の流れの中間段階での支出は合理的なものとなっているか。 | AD98: ○
C99: 費目・使途が事業目的に即し真に必要なものに限定されているか。 | AD99: ○
C100: 不用率が大きい場合、その理由は妥当か。（理由を右に記載） | AD100: ‐
C101: 繰越額が大きい場合、その理由は妥当か。（理由を右に記載） | AD101: ‐
C102: その他コスト削減や効率化に向けた工夫は行われているか。 | AD102: ○
A103: 事業の有効性 | C103: 成果実績は成果目標に見合ったものとなっているか。 | AD103: △ | AG103: 平成26年8月に人事給与業務効率化推進会議が設置され、政府全体で人事給与業務の抜本的な見直しに取り組むこととなり、平成27年3月に改善計画が策定（様式統一等及びシステムの性能向上、機能向上の見直し）された。また、各府省の移行スケジュールに基づき、平成28年度中に改善計画に定める全ての導入府省について、システムの運用を開始した（参議院を除く）。
C104: 事業実施に当たって他の手段・方法等が考えられる場合、それと比較してより効果的あるいは低コストで実施できているか。 | AD104: ○
C105: 活動実績は見込みに見合ったものであるか。 | AD105: ○
C106: 整備された施設や成果物は十分に活用されているか。 | AD106: ○
A107: 関連事業 | C107: 関連する事業がある場合、他部局・他府省等と適切な役割分担を行っているか。（役割分担の具体的な内容を各事業の右に記載）
C108: 所管府省・部局名 | P108: 事業番号 | T108: 事業名
A114: 点検・改善結果 | C114: 点検結果 | G114: ・アプリケーションについて、各種制度改正や障害・要望対応に伴うアプリケーション改修を各府省等と優先順位等を調整の上、引き続き着実かつ適切に実施する必要がある。 ・平成28年度中に全ての導入府省について、システムの運用を開始した（参議院を除く）が、引き続き各府省等と十分情報共有を図り、安定的な運用が実現出来るよう支援を実施する必要がある。
C115: 改善の 方向性 | G115: ・アプリケーション保守について、各省の合意を得て年度改修計画を策定し、計画的に改修を進める。また、平成27及び28年度に実施した改善計画による性能及び機能面の取組を踏まえ、引き続き安定運用・利便性向上・効率化に繋がる見直しを実施する。 ・人事・給与システムを導入した府省等の安定的な運用を確実に進めるため、これらの府省等を対象とした利用者講習会を実施するほか、メールマガジンの発行、ＱＡ集及び利用者マニュアルの整備を進める。
A116: 外部有識者の所見
A117: ※ 外部有識者による点検の対象外の事業
A118: 行政事業レビュー・調達改善推進チームの所見
A119: 現状通り | F119: 平成29年度に本番稼働に移行する府省等を含め、人事・給与システムの本番稼働府省等に対する支援を円滑かつ確実に実施するため、平成30年度予算概算要求において必要な予算額を計上すること。
A120: 所見を踏まえた改善点/概算要求における反映状況
A121: 縮減 | F121: 各種制度改正への対応、人給システムを導入した府省等への運用作業支援、給与の支出官払化等の他の府省共通システムとの連携の推進及び次期システム更改に対応するための予算を計上するとともに、既存の運用・保守経費について精査を行う。
A122: 備考
A124: 関連する過去のレビューシートの事業番号
A125: =Q125-1 -> 22 | G125: － | Q125: =AG125-1 -> 23 | W125: － | AG125: =A126-1 -> 24 | AM125: 2
A126: =Q126-1 -> 25 | G126: 2 | Q126: =AG126-1 -> 26 | W126: 2 | AG126: =A127-1 -> 27 | AM126: 2
A127: =AM55 -> 28 | G127: 2
A128: 資金の流れ （資金の受け取り先が何を行っているかについて補足する） (単位：百万円) | G128: =A127 -> 28
U132: ・人事・給与システムの改修 に係る設計・開発（改善計画・機能向上案件 及び府省移行支援） ・人事・給与システムの改修に 係る設計・開発（改善計画・性能向上案件） ・人事・給与システムに係る アプリケーション保守 ・人事・給与システムに係る 移行ツール改修 | AK132: ・人事・給与システムの改修 に係る設計・開発（改善計画・機能向上案件） ・人事・給与システムの改修に 係る設計・開発（改善計画・性能向上案件） ・人事・給与システムに係る アプリケーション保守
U139: ・人事・給与システムの機器及びソフトウェア賃貸借・保守（政府共通ＰＦへの移行） ・人事・給与システムに係る機器等賃貸借及び保守（第四期）
U145: ・人事・給与システムの運用サービス（政府共通ＰＦ） ・人事・給与システムのバックアップデータ退避
U150: ・人事・給与システムの運用・保守に係るプロジェクト管理支援
U155: ・人事・給与システムに係るヘルプデスク支援 | AK155: ・人事・給与システムに係るヘルプデスク支援
U160: ・人事・給与システムの改善計画に基づくアプリケーション改修に係るプロジェクト管理支援
U164: ・人事・給与システムアドバイザー ・LTOデータカートリッジ他の購入 ・庁費 ・職員旅費
A167: 費目・使途 （「資金の流れ」においてブロックごとに最大の金額が支出されている者について記載する。費目と使途の双方で実情が分かるように記載） | G167: A.沖電気工業(株) | AC167: B.東京センチュリーリース(株)
G168: 費 目 | L168: 使 途 | Y168: 金 額 (百万円） | AC168: 費 目 | AH168: 使 途 | AU168: 金 額 (百万円）
G169: 雑役務費 | L169: 人事・給与システムの改修に係る設計・開発（改善計画・機能向上案件） | Y169: 1277 | AC169: 機器借料 | AH169: 人事・給与システムの機器及びソフトウェア賃貸借・保守（政府共通ＰＦへの移行） | AU169: 214
G170: 雑役務費 | L170: 人事・給与システムの改修に係る設計・開発（改善計画・性能向上案件） | Y170: 207 | AC170: 機器借料 | AH170: 人事・給与システムに係る機器等賃貸借及び保守（第4期） | AU170: 31
G171: 雑役務費 | L171: 人事・給与システムの改修に係るアプリケーション保守業務 | Y171: 478
G172: 雑役務費 | L172: 人事・給与システムに係る移行ツール改修 | Y172: 5
G179: 計 | Y179: =SUM(Y169:AB178) -> 1967 | AC179: 計 | AU179: =SUM(AU169:AX178) -> 245
G180: C.富士通(株) | AC180: D.伊藤忠テクノソリューションズ(株)
G181: 費 目 | L181: 使 途 | Y181: 金 額 (百万円） | AC181: 費 目 | AH181: 使 途 | AU181: 金 額 (百万円）
G182: 雑役務費 | L182: 人事・給与システムの運用サービス（政府共通ＰＦ） | Y182: 1009 | AC182: 雑役務費 | AH182: 人事・給与システムの運用・保守に係るプロジェクト管理支援 | AU182: 45
G183: 雑役務費 | L183: 人事・給与システムのバックアップデータ退避 | Y183: 1
G192: 計 | Y192: =SUM(Y182:AB191) -> 1010 | AC192: 計 | AU192: =SUM(AU182:AX191) -> 45
G193: E.りらいあコミュニケーションズ(株) | AC193: F. PwCコンサルティング合同会社
G194: 費 目 | L194: 使 途 | Y194: 金 額 (百万円） | AC194: 費 目 | AH194: 使 途 | AU194: 金 額 (百万円）
G195: 雑役務費 | L195: 人事・給与システムに係るヘルプデスク支援 | Y195: 109 | AC195: 雑役務費 | AH195: 人事・給与システムの改善計画に基づくアプリケーション改修に係るプロジェクト管理支援 | AU195: 190
G205: 計 | Y205: =SUM(Y195:AB204) -> 109 | AC205: 計 | AU205: =SUM(AU195:AX204) -> 190
G206: G.その他 | AC206: H.
G207: 費 目 | L207: 使 途 | Y207: 金 額 (百万円） | AC207: 費 目 | AH207: 使 途 | AU207: 金 額 (百万円）
G208: 雑役務費 | L208: 人事・給与システムアドバイザー | Y208: 7
G209: 雑役務費 | L209: LTOデータカートリッジ他の購入 | Y209: 1
G210: 庁費 | L210: 光熱水料、電気料 | Y210: 2
G211: 職員旅費 | L211: 職員旅費 | Y211: 1
G218: 計 | Y218: =SUM(Y208:AB211) -> 11 | AC218: 計 | AU218: =SUM(AU208:AX210) -> 0
A219: 費目・使途欄についてさらに記載が必要な場合はチェックの上【別紙２】に記載
B222: 支出先上位１０者リスト
B223: A.
C224: 支 出 先 | J224: 法 人 番 号 | P224: 業 務 概 要 | Y224: 支 出 額 （百万円） | AC224: 契約方式 | AH224: 入札者数 （応募者数） | AL224: 落札率 | AP224: 一者応札・一者応募又は 競争性のない随意契約となった 理由及び改善策 （支出額10億円以上）
A225: 1 | B225: 1 | C225: 沖電気工業(株) | J225: 7010401006126 | P225: 人事・給与システムの改修に係る設計・開発業務（改善計画・機能向上案件）及び府省移行支援業務 | Y225: 1277 | AC225: 一般競争契約 （総合評価） | AH225: 1 | AP225: 他業者が開発したシステム改修はシステム自体を習熟するための費用と時間がかかり、応札するリスクが大きいと考えられるところ。業者が広く参加出来るよう、仕様書等の詳細化、情報開示等の見直しを検討していく。
A226: 2 | B226: 1 | C226: 沖電気工業(株) | J226: 7010401006126 | P226: 人事・給与システムの改修に係る設計・開発業務（改善計画・性能向上案件） | Y226: 207 | AC226: 一般競争契約 （総合評価） | AH226: 1
A227: 3 | B227: 1 | C227: 沖電気工業(株) | J227: 7010401006126 | P227: 人事・給与システムに係るアプリケーション保守業務 | Y227: 168 | AC227: 一般競争契約 （総合評価） | AH227: 1
A228: 4 | B228: 1 | C228: 沖電気工業(株) | J228: 7010401006126 | P228: 人事・給与システムに係るアプリケーション保守業務 | Y228: =47+67+196 -> 310 | AC228: 随意契約 （その他） | AH228: -
A229: 5 | B229: 1 | C229: 沖電気工業(株) | J229: 7010401006126 | P229: 人事・給与システムに係る移行ツール改修業務 | Y229: 5 | AC229: 一般競争契約 （最低価格） | AH229: 1
A230: 6 | B230: 1
A231: 7 | B231: 1
A232: 8 | B232: 1
A233: 9 | B233: 1
A234: 10 | B234: 1
B236: B.
C237: 支 出 先 | J237: 法 人 番 号 | P237: 業 務 概 要 | Y237: 支 出 額 （百万円） | AC237: 契約方式 | AH237: 入札者数 （応募者数） | AL237: 落札率 | AP237: 一者応札・一者応募又は 競争性のない随意契約となった 理由及び改善策 （支出額10億円以上）
A238: 1 | B238: 1 | C238: 東京センチュリーリース(株) | J238: 6010401015821 | P238: 人事・給与システムの機器及びソフトウェア賃貸借・保守（政府共通プラットフォームへの移行） | Y238: 214 | AC238: 一般競争契約 （総合評価） | AH238: 1
A239: 2 | B239: 1 | C239: 東京センチュリーリース(株) | J239: 6010401015821 | P239: 人事・給与システムの機器及びソフトウェア賃貸借・保守（第４期） | Y239: 31 | AC239: 一般競争契約 （最低価格） | AH239: 1
A240: 3 | B240: 1
A241: 4 | B241: 1
A242: 5 | B242: 1
A243: 6 | B243: 1
A244: 7 | B244: 1
A245: 8 | B245: 1
A246: 9 | B246: 1
A247: 10 | B247: 1
B249: C.
C250: 支 出 先 | J250: 法 人 番 号 | P250: 業 務 概 要 | Y250: 支 出 額 （百万円） | AC250: 契約方式 | AH250: 入札者数 （応募者数） | AL250: 落札率 | AP250: 一者応札・一者応募又は 競争性のない随意契約となった 理由及び改善策 （支出額10億円以上）
A251: 1 | B251: 1 | C251: 富士通(株) | J251: 1020001071491 | P251: 人事・給与システムの運用サービス業務（政府共通ＰＦ） | Y251: 929 | AC251: 一般競争契約 （総合評価） | AH251: 1
A252: 2 | B252: 1 | C252: 富士通(株) | J252: 1020001071491 | P252: 人事・給与システムの運用サービス業務（政府共通ＰＦ） | Y252: 80 | AC252: 随意契約 （その他） | AH252: -
A253: 3 | B253: 1 | C253: 富士通(株) | J253: 1020001071491 | P253: 人事・給与システムのバックアップデータ退避等業務 | Y253: 1 | AC253: 一般競争契約 （最低価格） | AH253: 1
A254: 4 | B254: 1
A255: 5 | B255: 1
A256: 6 | B256: 1
A257: 7 | B257: 1
A258: 8 | B258: 1
A259: 9 | B259: 1
A260: 10 | B260: 1
B262: D.
C263: 支 出 先 | J263: 法 人 番 号 | P263: 業 務 概 要 | Y263: 支 出 額 （百万円） | AC263: 契約方式 | AH263: 入札者数 （応募者数） | AL263: 落札率 | AP263: 一者応札・一者応募又は 競争性のない随意契約となった 理由及び改善策 （支出額10億円以上）
A264: 1 | B264: 1 | C264: 伊藤忠テクノソリューションズ(株) | J264: 2010001010788 | P264: 人事・給与システムのプロジェクト管理支援業務 | Y264: 36 | AC264: 一般競争契約 （総合評価） | AH264: 1
A265: 2 | B265: 1 | C265: 伊藤忠テクノソリューションズ(株) | J265: 2010001010788 | P265: 人事・給与システムのプロジェクト管理支援業務 | Y265: 9 | AC265: 随意契約 （その他） | AH265: -
A266: 3 | B266: 1
A267: 4 | B267: 1
A268: 5 | B268: 1
A269: 6 | B269: 1
A270: 7 | B270: 1
A271: 8 | B271: 1
A272: 9 | B272: 1
A273: 10 | B273: 1
B275: E.
C276: 支 出 先 | J276: 法 人 番 号 | P276: 業 務 概 要 | Y276: 支 出 額 （百万円） | AC276: 契約方式 | AH276: 入札者数 （応募者数） | AL276: 落札率 | AP276: 一者応札・一者応募又は 競争性のない随意契約となった 理由及び改善策 （支出額10億円以上）
A277: 1 | B277: 1 | C277: りらいあコミュニケーションズ(株) | J277: 9011001029944 | P277: 人事・給与システムのヘルプデスク業務 | Y277: 109 | AC277: 一般競争契約 （総合評価） | AH277: 2
A278: 2 | B278: 1
A279: 3 | B279: 1
A280: 4 | B280: 1
A281: 5 | B281: 1
A282: 6 | B282: 1
A283: 7 | B283: 1
A284: 8 | B284: 1
A285: 9 | B285: 1
A286: 10 | B286: 1
... 41 more rows

Sheet 入力規則等 (hidden)
A1: 主要施策名 | B1: 該当の有無 | F1: 会計区分 | G1: 該当の有無 | K1: 主要経費名 | L1: 該当の有無 | P1: 実施方法 | Q1: 該当の有無 | U1: 事業番号 | W1: 開始年度 | Y1: 終了（予定）年度 | AA1: 行政事業レビュー推進チームの所見 | AC1: 所見を踏まえた改善点/概算要求における反映状況 | AE1: 契約方式 | AG1: 一体改革分野 | AI1: ブロック名
A2: 医療分野の研究開発関連 | C2: =IF(B2="","",A2) ->  | D2: =IF(C2="","",IF(D1<>"",CONCATENATE(D1,"、",C2),C2)) ->  | F2: 一般会計 | H2: =IF(G2="","",F2) ->  | I2: =IF(H2="","",IF(I1<>"",CONCATENATE(I1,"、",H2),H2)) ->  | K2: 社会保障 | M2: =IF(L2="","",K2) ->  | N2: =IF(M2="","",IF(N1<>"",CONCATENATE(N1,"、",M2),M2)) ->  | P2: 直接実施 | R2: =IF(Q2="","",P2) ->  | S2: =IF(R2="","",IF(S1<>"",CONCATENATE(S1,"、",R2),R2)) ->  | Y2: 平成２５年度 | AA2: 廃止 | AC2: 廃止 | AE2: 一般競争契約 （最低価格） | AG2: 社会保障 | AI2: A
A3: 宇宙開発利用 | C3: =IF(B3="","",A3) ->  | D3: =IF(C3="",D2,IF(D2<>"",CONCATENATE(D2,"、",C3),C3)) ->  | F3: 交付税及び譲与税配付金特別会計 | H3: =IF(G3="","",F3) ->  | I3: =IF(H3="",I2,IF(I2<>"",CONCATENATE(I2,"、",H3),H3)) ->  | K3: 文教及び科学振興 | M3: =IF(L3="","",K3) ->  | N3: =IF(M3="",N2,IF(N2<>"",CONCATENATE(N2,"、",M3),M3)) ->  | P3: 委託・請負 | R3: =IF(Q3="","",P3) ->  | S3: =IF(R3="",S2,IF(S2<>"",CONCATENATE(S2,"、",R3),R3)) ->  | U3: 新28 | W3: 昭和元年度以前 | Y3: 平成２６年度 | AA3: 事業全体の 抜本的な改善 | AC3: 縮減 | AE3: 一般競争契約 （総合評価） | AG3: 社会資本整備等 | AI3: =CHAR(CODE(AI2)+1) -> B
A4: 沖縄振興 | D4: =IF(C4="",D3,IF(D3<>"",CONCATENATE(D3,"、",C4),C4)) ->  | F4: 地震再保険特別会計 | I4: =IF(H4="",I3,IF(I3<>"",CONCATENATE(I3,"、",H4),H4)) ->  | K4: 恩給関係 | N4: =IF(M4="",N3,IF(N3<>"",CONCATENATE(N3,"、",M4),M4)) ->  | P4: 補助 | U4: 新29 | W4: 昭和２年度 | Y4: 平成２７年度 | AA4: 事業内容の 一部改善 | AC4: 執行等改善 | AE4: 指名競争契約 （最低価格） | AG4: 制度・地方行財政 | AI4: =CHAR(CODE(AI3)+1) -> C
A5: 海洋政策 | D5: =IF(C5="",D4,IF(D4<>"",CONCATENATE(D4,"、",C5),C5)) ->  | F5: 国債整理基金特別会計 | K5: 防衛関係 | P5: 負担 | W5: 昭和３年度 | Y5: 平成２８年度 | AA5: 終了予定 | AC5: 予定通り終了 | AE5: 指名競争契約 （総合評価） | AG5: 文教・科学技術 外交・安全保障・防衛等 | AI5: D
A6: 科学技術・イノベーション | D6: =IF(C6="",D5,IF(D5<>"",CONCATENATE(D5,"、",C6),C6)) ->  | F6: 外国為替資金特別会計 | K6: 公共事業 | P6: 交付 | W6: 昭和４年度 | Y6: 平成２９年度 | AA6: 現状通り | AC6: 現状通り | AE6: 随意契約 （企画競争） | AI6: E
A7: 観光立国 | F7: 財政投融資特別会計財政融資資金勘定 | K7: 経済協力 | P7: 貸付 | W7: 昭和５年度 | Y7: 平成３０年度 | AE7: 随意契約 （公募） | AI7: F
A8: 交通安全対策 | F8: 財政投融資特別会計投資勘定 | K8: 中小企業対策 | P8: その他 | W8: 昭和６年度 | Y8: 平成３１年度 | AE8: 随意契約 （少額） | AI8: G
A9: 高齢社会対策 | F9: 財政投融資特別会計特定国有財産整備勘定 | K9: エネルギー対策 | W9: 昭和７年度 | Y9: 平成３２年度 | AE9: 随意契約 （その他） | AI9: H
A10: 国土強靭化施策 | F10: エネルギー対策特別会計エネルギー需給勘定 | K10: 食糧安定供給関係 | P10: =S8 ->  | W10: 昭和８年度 | Y10: 平成３３年度 | AE10: 国庫債務 負担行為等 | AI10: I
A11: 子ども・若者育成支援 | F11: エネルギー対策特別会計電源開発促進勘定 | K11: その他の事項経費 | W11: 昭和９年度 | Y11: 平成３４年度 | AE11: （諸謝金） | AI11: J
A12: 自殺対策 | F12: エネルギー対策特別会計原子力損害賠償支援勘定 | W12: 昭和１０年度 | Y12: 平成３５年度 | AE12: その他 | AI12: K
A13: 障害者施策 | F13: 労働保険特別会計労災勘定 | K13: =N11 ->  | W13: 昭和１１年度 | Y13: 平成３６年度 | AI13: L
A14: 少子化社会対策 | F14: 労働保険特別会計雇用勘定 | W14: 昭和１２年度 | Y14: 平成３７年度 | AI14: M
A15: 食育推進 | F15: 労働保険特別会計徴収勘定 | W15: 昭和１３年度 | Y15: 平成３８年度 | AI15: N
A16: 男女共同参画 | F16: 年金特別会計基礎年金勘定 | W16: 昭和１４年度 | Y16: 平成３９年度 | AI16: O
A17: 地球温暖化対策 | F17: 年金特別会計国民年金勘定 | W17: 昭和１５年度 | Y17: 平成４０年度 | AI17: P
A18: 犯罪被害者等施策 | F18: 年金特別会計厚生年金勘定 | W18: 昭和１６年度 | Y18: 平成４１年度 | AI18: Q
A19: ＩＴ戦略 | F19: 年金特別会計健康勘定 | W19: 昭和１７年度 | Y19: 平成４２年度 | AI19: R
A20: クールジャパン | F20: 年金特別会計子ども・子育て支援勘定 | W20: 昭和１８年度 | Y20: 平成４３年度 | AI20: S
A21: 知的財産 | F21: 年金特別会計業務勘定 | W21: 昭和１９年度 | Y21: 平成４４年度 | AI21: T
A22: 地方創生 | F22: 食料安定供給特別会計農業経営安定勘定 | W22: 昭和２０年度 | Y22: 平成４５年度 | AI22: U
A23: ＯＤＡ | F23: 食料安定供給特別会計食糧管理勘定 | W23: 昭和２１年度 | Y23: 平成４６年度 | AI23: V
A24: 2020年東京オリパラ | F24: 食料安定供給特別会計農業共済再保険勘定 | W24: 昭和２２年度 | Y24: 平成４７年度 | AI24: =CHAR(CODE(AI23)+1) -> W
F25: 食料安定供給特別会計漁船再保険勘定 | W25: 昭和２３年度 | Y25: 平成４８年度 | AI25: X
A26: =D24 ->  | F26: 食料安定供給特別会計漁業共済保険勘定 | W26: 昭和２４年度 | Y26: 平成４９年度 | AI26: Y
F27: 食料安定供給特別会計業務勘定 | W27: 昭和２５年度 | Y27: 平成５０年度 | AI27: =CHAR(CODE(AI26)+1) -> Z
F28: 食料安定供給特別会計国営土地改良事業勘定 | W28: 昭和２６年度 | Y28: 平成５１年度 | AI28: a
F29: 国有林野事業債務管理特別会計 | W29: 昭和２７年度 | Y29: 平成５２年度 | AI29: b
F30: 貿易再保険特別会計 | W30: 昭和２８年度 | Y30: 平成５３年度 | AI30: c
F31: 特許特別会計 | W31: 昭和２９年度 | Y31: 平成５４年度 | AI31: d
F32: 自動車安全特別会計保障勘定 | W32: 昭和３０年度 | Y32: 平成５５年度 | AI32: e
F33: 自動車安全特別会計自動車検査登録勘定 | W33: 昭和３１年度 | Y33: 平成５５年度以降 | AI33: f
F34: 自動車安全特別会計自動車事故対策勘定 | W34: 昭和３２年度 | Y34: 終了予定なし | AI34: g
F35: 自動車安全特別会計空港整備勘定 | W35: 昭和３３年度 | AI35: h
F36: 東日本大震災復興特別会計 | W36: 昭和３４年度 | AI36: i
W37: 昭和３５年度 | AI37: j
W38: 昭和３６年度 | AI38: k
F39: =I37 ->  | W39: 昭和３７年度 | AI39: l
W40: 昭和３８年度 | AI40: m
W41: 昭和３９年度 | AI41: n
W42: 昭和４０年度 | AI42: o
W43: 昭和４１年度 | AI43: p
W44: 昭和４２年度 | AI44: q
W45: 昭和４３年度 | AI45: r
W46: 昭和４４年度 | AI46: s
W47: 昭和４５年度 | AI47: t
W48: 昭和４６年度 | AI48: u
W49: 昭和４７年度 | AI49: v
W50: 昭和４８年度
W51: 昭和４９年度
W52: 昭和５０年度
W53: 昭和５１年度
W54: 昭和５２年度
W55: 昭和５３年度
W56: 昭和５４年度
W57: 昭和５５年度
W58: 昭和５６年度
W59: 昭和５７年度
W60: 昭和５８年度
W61: 昭和５９年度
W62: 昭和６０年度
W63: 昭和６１年度
W64: 昭和６２年度
W65: 昭和６３年度
W66: 平成元年度
W67: 平成２年度
W68: 平成３年度
W69: 平成４年度
W70: 平成５年度
W71: 平成６年度
W72: 平成７年度
W73: 平成８年度
W74: 平成９年度
W75: 平成１０年度
W76: 平成１１年度
W77: 平成１２年度
W78: 平成１３年度
W79: 平成１４年度
W80: 平成１５年度
W81: 平成１６年度
W82: 平成１７年度
W83: 平成１８年度
W84: 平成１９年度
W85: 平成２０年度
W86: 平成２１年度
W87: 平成２２年度
W88: 平成２３年度
W89: 平成２４年度
W90: 平成２５年度
W91: 平成２６年度
W92: 平成２７年度
W93: 平成２８年度
W94: 平成２９年度
W95: 平成３０年度
W122: 新
